Cogmind - Beta 12 @@@ ROGUE MODE // 2023.10.27 @ 18:55:48 Player: FrostySpirit Result: Destroyed by as-46777 with Assembled F-torch Performance ------------- Evolutions (1) 500 Regions Visited (4) 800 Robots Destroyed (12) 60 Value Destroyed (299) 299 Prototype IDs (3) 60 Alien Tech Used (0) 0 Bonus (57) 57 TOTAL SCORE: 1776 Bonus ------- Follower Combat Kills 67 Friendly Fire -10 Cogmind --------- Core Integrity 0/400 Matter 300/300 Energy 99/100 System Corruption 9% Temperature Cool (20) Movement Core (50) Location -9/Mines Parts ------- > --- POWER (2) -------- (None) > --- PROPULSION (3) --- (None) > --- UTILITY (2) ------ Signal Interpreter > --- WEAPON (2) ------- (None) > --- INVENTORY (5) ---- Terrain Scanner ECM Suite ECM Suite ECM Suite Reaction Control System Peak State ------------ > --- POWER ------------ Light Nuclear Core Light Nuclear Core > --- PROPULSION ------- Carbon-fiber Leg Carbon-fiber Leg Carbon-fiber Leg > --- UTILITY ---------- Small Storage Unit ECM Suite > --- WEAPON ----------- Medium Laser Light Assault Rifle > --- INVENTORY -------- Light Ion Engine Structural Scanner Signal Interpreter Terrain Scanner ECM Suite ECM Suite ECM Suite Reaction Control System [Rating: 20] Favorites ----------- Power Light Nuclear Core Engine Light Ion Engine Power Core Light Nuclear Core Propulsion Carbon-fiber Leg Leg Carbon-fiber Leg Wheel Wheel Flight Unit Flight Unit Utility Small Storage Unit Device ECM Suite Storage Small Storage Unit Processor Signal Interpreter Weapon Light Assault Rifle Energy Gun Medium Laser Ballistic Gun Light Assault Rifle Build | -11 -10 -10 -9 -9 ------- Run | Jun Mat Min Mat Min Slots Evolved 2 | . . . 2 . Power 1 | . . . 1 . Propulsion 1 | . . . 1 . Utility . | . . . . . Weapon . | . . . . . Parts Attached 31 | 6 10 4 9 2 Power 7 | 1 2 1 2 1 Engine 5 | 1 2 . 1 1 Core 2 | . . 1 1 . Reactor . | . . . . . Propulsion 15 | 2 5 2 6 . Treads . | . . . . . Leg 6 | . . 2 4 . Wheel 3 | 2 1 . . . Hover . | . . . . . Flight 6 | . 4 . 2 . Utility 3 | 1 1 . . 1 Device 1 | . 1 . . . Storage 1 | 1 . . . . Processor 1 | . . . . 1 Hackware . | . . . . . Protection . | . . . . . Artifact . | . . . . . Weapon 6 | 2 2 1 1 . Energy Gun 3 | 1 1 1 . . Energy Cannon . | . . . . . Ballistic Gun 3 | 1 1 . 1 . Ballistic Cannon . | . . . . . Launcher . | . . . . . Special Weapon . | . . . . . Impact Weapon . | . . . . . Slashing Weapon . | . . . . . Piercing Weapon . | . . . . . Special Melee Weapon . | . . . . . Unidentified Prototypes . | . . . . . Parts Lost 13 | . . 3 3 7 Power 4 | . . 1 2 1 Propulsion 5 | . . 2 . 3 Utility 1 | . . . . 1 Weapon 3 | . . . 1 2 Highest Loss Streak 7 | . . 3 2 7 To Critical Strikes . | . . . . . Average Slot Usage (%) 83 | . 91 84 95 36 Engine 6 | . 13 . 6 3 Core 9 | . . 12 14 . Leg 18 | . . 24 26 11 Wheel 4 | . 21 . . . Flight 2 | . 3 1 3 . Device 10 | . 11 14 11 3 Storage 11 | . 14 14 11 3 Processor 1 | . . . . 7 Energy Gun 8 | . 12 2 11 2 Ballistic Gun 11 | . 13 14 11 3 Naked Turns . | . . . . . Heaviest Build 20 | 10 12 15 20 13 Greatest Support 45 | 20 20 20 45 45 Greatest Overweight (x) 5 | 3 3 2 5 . Average Overweight (x) . | . . . . . Largest Inventory Capacity 8 | 8 8 8 8 8 Average Capacity 7 | 7 8 8 8 6 Most Carried 8 | 1 8 8 8 7 Average Carried 6 | . 4 7 7 5 Final Capacity 8 | 8 8 8 8 5 Final Carried 8 | 1 8 8 8 5 Class Distribution -------------------- 100% | Mutant Dominant Class ---------------- Mutant | -10/Materials Mutant | -10/Mines Mutant | -9/Materials Mutant | -9/Mines Resources | -11 -10 -10 -9 -9 ----------- Run | Jun Mat Min Mat Min Matter Collected 524 | 214 81 106 113 10 Remotely . | . . . . . Salvage Created 356 | . 81 36 239 . Parts 23 | . 5 3 15 . Haulers Intercepted . | . . . . . Recyclers Shooed . | . . . . . Parts Field Recycled . | . . . . . Retrieved Matter . | . . . . . Parts Self-Destructed . | . . . . . Prevented . | . . . . . Kills | -11 -10 -10 -9 -9 ------- Run | Jun Mat Min Mat Min Combat Hostiles Destroyed 12 | . 2 1 9 . Guns 12 | . 2 1 9 . Classes Destroyed 3 | . 1 . 2 . Swarmer 5 | . . . 5 . Grunt 6 | . 2 1 3 . Sentry 1 | . . . 1 . Best Kill Streak 5 | . 1 1 5 . Combat Bots Only 5 | . 1 1 5 . Max Kills in Single Turn 2 | . 1 1 2 . Gunslinging . | . . . . . Exploded . | . . . . . Melee . | . . . . . Uniques/NPCs Destroyed . | . . . . . Combat | -11 -10 -10 -9 -9 -------- Run | Jun Mat Min Mat Min Damage Taken 1512 | . 196 119 475 722 Core 552 | . 97 53 72 330 Absorbed by Shields . | . . . . . Core Remaining (%) 70 | 100 . 40 . . Volleys Fired 48 | 1 8 7 30 2 Largest 2 | 2 2 1 2 2 Hottest 70 | 60 60 20 70 70 Shots Fired 87 | 2 16 7 59 3 Gun 87 | 2 16 7 59 3 Cannon . | . . . . . Launcher . | . . . . . Special . | . . . . . Kinetic 48 | 1 8 7 30 2 Thermal 39 | 1 8 . 29 1 Explosive . | . . . . . Electromagnetic . | . . . . . Robot Hit Streak 8 | . 8 4 7 2 Robot Miss Streak 4 | . 2 1 4 1 Penetration Max . | . . . . . Secondary Targets 4 | . . . 4 . Max Gunslinging Chain 1 | . . . 1 . Shots Hit Robots 51 | . 11 5 33 2 Core Hits 24 | . 4 3 15 2 Critical Kills . | . . . . . Critical Parts Destroyed . | . . . . . Critical Strikes 4 | . . . 4 . Burn 4 | . . . 4 . Melee Attacks . | . . . . . Impact . | . . . . . Slashing . | . . . . . Piercing . | . . . . . Sneak Attacks . | . . . . . Combat Hostiles . | . . . . . Follow-up Attacks . | . . . . . Damage Inflicted 578 | . 112 46 392 28 Guns 565 | . 112 46 392 15 Cannons . | . . . . . Explosions . | . . . . . Melee . | . . . . . Ramming 13 | . . . . 13 Kinetic 264 | . 37 46 166 15 Thermal 301 | . 75 . 226 . Explosive . | . . . . . Electromagnetic . | . . . . . Impact . | . . . . . Slashing . | . . . . . Piercing . | . . . . . Highest Corruption 9 | . . . . 9 Average Corruption 9 | . . . . 9 Corruption Purged . | . . . . . Corruption Blocked . | . . . . . Effects 1 | . . . . 1 Message Errors 1 | . . . . 1 Overload Shots . | . . . . . Overflow Damage . | . . . . . Projectiles . | . . . . . Explosions . | . . . . . Melee . | . . . . . Knockbacks . | . . . . . Impact . | . . . . . Kinetic . | . . . . . Secondary . | . . . . . Self-Inflicted Damage 6 | . . . . 6 Shots . | . . . . . Rammed 6 | . . . . 6 Targets Rammed 7 | . . . . 7 Kicked 1 | . . . . 1 Crushed . | . . . . . Highest Temperature 339 | 20 64 17 339 24 Average Temperature 135 | 15 25 8 161 12 Received Heat Transfer 482 | . 108 66 228 80 Effects 2 | . . . 2 . Shutdowns 1 | . . . 1 . Energy Bleed 1 | . . . 1 . Siege Activations . | . . . . . Robots Corrupted . | . . . . . Combat Hostiles . | . . . . . Parts Fried . | . . . . . Impact Corruptions . | . . . . . Robots Melted . | . . . . . Combat Hostiles . | . . . . . Parts Melted 3 | . . . 3 . Heat Transferred 1137 | . 175 . 962 . Parts Sabotaged . | . . . . . Parts Stolen . | . . . . . Parts Stripped . | . . . . . Power Chain Reactions . | . . . . . Missiles Intercepted . | . . . . . Alert | -11 -10 -10 -9 -9 ------- Run | Jun Mat Min Mat Min Peak Influence 277 | . 80 31 277 30 Initial 31 | . . 31 7 25 Average 55 | . 53 21 97 8 Maximum Alert Level 1 | . . . 1 . Low Security (%) 93 | 100 100 100 84 100 Level 1 6 | . . . 15 . Level 2 . | . . . . . Level 3 . | . . . . . Level 4 . | . . . . . Level 5 . | . . . . . High Security . | . . . . . Max Security . | . . . . . Squads Dispatched 3 | . 3 . . . Investigation 1 | . 1 . . . Extermination . | . . . . . Reinforcement 2 | . 2 . . . Assault . | . . . . . Garrison . | . . . . . Intercept . | . . . . . Searches Triggered . | . . . . . Construction Impeded . | . . . . . Haulers Reinforced . | . . . . . Active Scanning Responses . | . . . . . Cargo Convoy Interrupts . | . . . . . Stealth | -11 -10 -10 -9 -9 --------- Run | Jun Mat Min Mat Min Distress Signals 1 | . . . 1 . Communications Jammed . | . . . . . Distress Signals . | . . . . . Times Spotted 48 | . 5 3 21 19 Peak Tracking Total 13 | . 1 3 6 13 Tactical Retreats 5 | . 1 . . 4 Traps | -11 -10 -10 -9 -9 ------- Run | Jun Mat Min Mat Min Traps Triggered 3 | . 3 . . . Indirectly . | . . . . . Trap Hack Attempts . | . . . . . Triggered . | . . . . . Disarmed . | . . . . . Reprogrammed . | . . . . . Reused . | . . . . . Traps Extracted . | . . . . . Installed . | . . . . . Triggered . | . . . . . Machines | -11 -10 -10 -9 -9 ---------- Run | Jun Mat Min Mat Min Machines Disabled . | . . . . . Max in Single Turn . | . . . . . Machines Repaired . | . . . . . Machines Sabotaged . | . . . . . Overloaded Fab Kills . | . . . . . Hacking | -11 -10 -10 -9 -9 --------- Run | Jun Mat Min Mat Min Machines Accessed 3 | . 1 . 2 . Terminals 2 | . 1 . 1 . Fabricators . | . . . . . Repair Stations 1 | . . . 1 . Recycling Units . | . . . . . Scanalyzers . | . . . . . Garrison Access . | . . . . . Total Hacks 8 | . 4 . 4 . Successful 3 | . 3 . . . Failed 5 | . 1 . 4 . Catastrophic 1 | . . . 1 . Database Lockouts . | . . . . . Manual . | . . . . . Terminals 6 | . 4 . 2 . Fabricators . | . . . . . Repair Stations 2 | . . . 2 . Recycling Units . | . . . . . Scanalyzers . | . . . . . Garrison Access . | . . . . . Terminal Hacks 3 | . 3 . . . Prototype ID Bank 1 | . 1 . . . Locate Traps 1 | . 1 . . . Reinforcement Status 1 | . 1 . . . Fabricator Hacks . | . . . . . Repair Station Hacks . | . . . . . Recycling Unit Hacks . | . . . . . Scanalyzer . | . . . . . Garrison Access Hacks . | . . . . . Unauthorized Hacks . | . . . . . Terminals . | . . . . . Fabricators . | . . . . . Repair Stations . | . . . . . Recycling Units . | . . . . . Scanalyzers . | . . . . . Garrison Access . | . . . . . Data Cores Recovered . | . . . . . Used . | . . . . . Hacking Detections 1 | . 1 . . . Full Trace Events . | . . . . . Feedback Events . | . . . . . Feedback Blocked . | . . . . . Robot Schematics Acquired . | . . . . . Robots Built . | . . . . . Authchips . | . . . . . Time . | . . . . . Total Robot Build Rating . | . . . . . Part Schematics Acquired . | . . . . . Parts Built . | . . . . . Authchips . | . . . . . Time . | . . . . . Total Part Build Rating . | . . . . . Parts Repaired . | . . . . . Time . | . . . . . Parts Recycled . | . . . . . Recycled Matter . | . . . . . Retrieved Matter . | . . . . . Retrieved Components . | . . . . . Parts Scanalyzed . | . . . . . Part Schematics Acquired . | . . . . . Parts Damaged . | . . . . . Bothacking | -11 -10 -10 -9 -9 ------------ Run | Jun Mat Min Mat Min Used RIF Installer . | . . . . . Robots Hacked . | . . . . . Non-combat . | . . . . . Combat . | . . . . . Robot Hacks Applied . | . . . . . Relay Couplers Released . | . . . . . Fabnet Peak Effective % . | . . . . . Robots Rewired . | . . . . . Allies Hacked . | . . . . . Hacks Repelled . | . . . . . Allies | -11 -10 -10 -9 -9 -------- Run | Jun Mat Min Mat Min Total Allies 1 | . . 1 . . Largest Group 1 | . . 1 1 . Highest-Rated Group 31 | . . 31 31 . Highest-Rated Ally 31 | . . 31 31 . Total Orders . | . . . . . Ally Attacks 23 | . . . 23 . Total Damage 299 | . . . 299 . Kills 5 | . . . 5 . Allies Corrupted . | . . . . . Allies Melted . | . . . . . Intel | -11 -10 -10 -9 -9 ------- Run | Jun Mat Min Mat Min Robot Analysis Total . | . . . . . Derelict Logs Recovered 1 | . . 1 . . Drone Launches . | . . . . . Drone Recoveries . | . . . . . Exploration | -11 -10 -10 -9 -9 ------------- Run | Jun Mat Min Mat Min Turns Passed 982 | 55 190 199 402 136 Spaces Moved 766 | 45 163 139 226 193 Core 187 | 22 4 1 2 158 Treads . | . . . . . Legs 368 | . . 138 195 35 Wheels 163 | 23 140 . . . Hover . | . . . . . Flight 48 | . 19 . 29 . Fastest Speed 37 | 50 37 120 120 50 Average Speed 100 | 95 87 121 131 62 Slowest Speed 300 | 200 200 190 300 120 Overloaded Moves . | . . . . . Propulsion Burnouts . | . . . . . Robots Hopped . | . . . . . Cave-ins Triggered . | . . . . . Exploration Rate (%) 27 | 4 30 32 21 52 Regions Visited 4 Branch Regions 2 Pre-discovered Areas 2 | . . 1 . 1 Known Exits Taken . | . . . . . Unknown Exits Taken 4 | 1 1 1 1 . Scrap Searched 1 | . . 1 . . Spaces Dug . | . . . . . Terrain Destroyed . | . . . . . Melee . | . . . . . Projectile . | . . . . . AOE . | . . . . . Terrain Rammed . | . . . . . Walls Destroyed . | . . . . . Machines Disabled . | . . . . . Actions | -11 -10 -10 -9 -9 --------- Run | Jun Mat Min Mat Min Total 891 | 52 193 162 279 205 Wait 11 | . . 11 . . Move 762 | 44 162 138 225 193 Hop . | . . . . . Pick Up 16 | 1 8 1 6 . Fast Attach 24 | 6 8 4 5 1 Attach 4 | . . . 3 1 Detach . | . . . . . Swap 3 | . 2 . 1 . Drop 16 | . 5 1 9 1 Fire 48 | 1 8 7 30 2 Melee . | . . . . . Ram 6 | . . . . 6 Kick 1 | . . . . 1 Crush . | . . . . . Escape Stasis . | . . . . . Rewire . | . . . . . Trap . | . . . . . Miscellaneous . | . . . . . Route ------- -11/Junkyard -10/Materials -10/Mines -9/Materials -9/Mines (discovered 1 exit: [*Mat]) History --------- Turn | Location | Event 13 | -11/Junkyard | Discovered new exit (range 15) 56 | -11/Junkyard | Entered Materials 196 | -10/Materials | Discovered new exit (range 13) 246 | -10/Materials | Entered Mines 249 | -10/Mines | Core integrity fell below 50% 261 | -10/Mines | Escorted by a lone wolf Derelict 281 | -10/Mines | Learned location of Storage (-7) 286 | -10/Mines | Learned Materials terminal intel 287 | -10/Mines | Lost 3 parts (1p2n) 316 | -10/Mines | Build established: Mutant 435 | -10/Mines | Discovered new exit (range 7) 445 | -10/Mines | Entered Materials 445 | -9/Materials | Accompanied by 1 ally 445 | -9/Materials | Evolved 2 slots: Power x1, Propulsion x1 446 | -9/Materials | Loaded intel: 12 terminal locations 834 | -9/Materials | Discovered new exit (range 12) 847 | -9/Materials | Entered Mines 848 | -9/Mines | Assembled infested the area 853 | -9/Mines | Assisted by a Guerilla fighting off Assembled 898 | -9/Mines | Core integrity fell below 50% 903 | -9/Mines | Core integrity fell below 20% 928 | -9/Mines | Lost 7 parts (1p3n1u2w) 980 | -9/Mines | Discovered new exit (range 8) 983 | -9/Mines | Destroyed by as-46777 with Assembled F-torch Last Messages --------------- 00904_ Slammed into as-02488. 00911_ The unstable cave ceiling collapses. 00915_ K-01 Serf collects debris. 00921_ Slammed into K-01 Serf. 00924_ K-01 Serf destroyed. 00924_ Slammed into K-01 Serf. 00947_ A derelict emerges from the shadows: "Are any of them following you? I'm here trying to lose some heat after our second raid on Storage failed. Whatever you do stay away from that place, they've tightened security following our previous successful raids." World map confirmed: -7/Storage. 00949_ BG-Z4W(g): "We scattered so the Unaware couldn't effectively use their advantage in numbers, and I suggest you do the same." 00949_ BG-Z4W(g) slips back into the shadows. [Achievement: Slippery One] 00972_ T-07 Excavator heat damages core (-2). 00973_ T-07 Excavator heat short circuits Imp. Terrain Scanner. 00974_ T-07 Excavator heat damages Mining Laser, Lgt. Ion Engine. 00979_ T-07 Excavator heat damages core (-3). 00980_ EXIT=FOUND Map ----- +----------------------------------------------------+ | | | | | ???????????????????????????????????????????? | | ???????????????????????????????????????????? | | ???????????????????????????????????????????? | | ???????????????????????????????????????????? | | ???????????????????????????????????????????? | | ???????????????????????????????????????????? | | ???????????????????????????????????????????? | | ???????????????????????????????????????????? | | ???????????????????????????????????????????? | | ????????????????????? ????????????????????? | | ????????????????????? ????????????????????? | | ????????????????????? ????????????????????? | | ????????????????????? #????????????????????? | | ???????????????????? #????????????????????? | | ???????????????????? #????????????????????? | | ???????????????????? #????????????????????? | | ???????????????????? #????????????????????? | | ???????????????????? #????????????????????? | | ???????????????????? #????????????????????? | | ???????????????????? #????##??????????????? | | ??????????????????## ###?? ??????????????? | | ?????????????????## ##? #??????????????? | | ????????????# #### < ## #??????????????? | | ????????????# @ ## #??????????????? | | ????????????# ### ### ##?????????????? | | ????????????????# #### ##????????????? | | ????????????????## ### #????????????? | | ?????????????????## ### ##???????????? | | ????????????# #####a#### ###?????????? | | ????????????# ##????????? | | ????????????####### #????????? | | ??????????????????####%### ## #???????? | | ?????????????????????# #?## ##????????????? | | ?????????????????????# #### #?????????????? | | ????????????????????## ## #?????????????? | | ???????????????????## #?????????? ? | | ???????????????????# #???????? ? | | ??????????????????## ##??????# !%! # | | ????????????###?### % ##??????? | | ?????????#### ## ##??????? | | ?????????# ###???????? | | ??????????# #??????????? | | ??????????# # ###?????????? % | | ????????????## """ #???????????? | | ?????????????## """ #????????????? | | ???########???## """ #??????????????? | | ??## ##???## ##????????????????# | | ??# #????### ##?????????????????? | +----------------------------------------------------+ Best States ------------- Heat Dissipation 28 Energy Generation 23 Energy Capacity 220 Matter Stores 300 Matter Capacity 300 Sight Range 16 Terrain Scan Density 10 ECM Strength 1 Evasion (%) 55 Item Schematics ----------------- None Robot Schematics ------------------ None Fabricated ------------ Nothing Alien Tech Used ----------------- None Achievements -------------- Slippery One Challenges ------------ None Game ------ Seed SystemSigixAnalyzer Manual? 0 Play Time 00:18:32 Cumulative 17.7 hours Start 2023.10.27 @ 18:40:02 End 2023.10.27 @ 18:55:48 Sessions 1 Manual Loads 0 Difficulty Rogue Special Mode None Game No. 29 Rogue 29 Adventurer 0 Explorer 0 Win Type - Total 0 Types 0/0/0/0/0/0/0/0/0 Lore% 18 Gallery% 28 Achievement% 20 Wizard Run 0 Options --------- ASCII 0 Keyboard 0 Movement Mouse Keybinds 0 Fullscreen 1 Font 18/TerminusBold Map View 76x50 Tactical HUD 1 Map Filters NONE Filters NONE Steam 1 RUN: bc2f3858-4aed-4e99-9bee-4fd32eac053d